bitfinex-derivatives/quotes_ETHF0:USTF0_20250928
["timestamp","ask_amount","ask_price","bid_price","bid_amount"]
[1759102955401,0.5762,4138.9,4138.8,4.62952]
[1759102955605,0.2904,4138.9,4138.8,4.62952]
[1759102956301,1.0131,4138.9,4138.8,4.62952]
[1759102957496,0.5762,4138.9,4138.8,4.62952]
[1759102959903,1.0131,4138.9,4138.8,4.05462]
[1759102960202,1.0131,4138.9,4138.8,3.93722]
[1759102960598,1.0131,4138.9,4138.8,4.34932]
[1759102960791,1.0131,4138.9,4138.8,4.62952]
[1759102960998,1.0131,4138.9,4138.8,4.34932]
[1759102961492,1.0131,4138.9,4138.8,4.62952]
[1759102962098,1.0131,4138.9,4138.8,3.64252]
[1759102962305,1.48934739,4138.9,4138.8,0.43472]
[1759102962707,1.48934739,4138.9,4138.8,0.72942]
[1759102963006,1.48934739,4138.9,4138.8,1.14152]
[1759102963707,1.48934739,4138.9,4138.4,0.4121]
[1759102963903,1.48934739,4138.8,4138.7,0.43473]
[1759102964096,1.48934739,4138.8,4138.7,1.14153]
[1759102964298,1.48934739,4138.8,4138.7,1.42173]
[1759102967004,1.48934739,4138.8,4138.7,0.43473]
[1759102967606,1.48934739,4138.8,4138.7,0.72943]
[1759102967809,1.48934739,4138.8,4138.7,1.14153]
[1759102970506,1.48934739,4138.8,4138.7,1.42173]
[1759102971511,0.76664739,4138.8,4138.7,1.42173]
[1759102971706,1.48934739,4138.8,4138.7,1.42173]
[1759102972309,0.76664739,4138.8,4138.7,1.42173]
[1759102972803,1.92406739,4138.8,4138.7,0.84683]
[1759102973006,1.48934739,4138.8,4138.7,1.14153]
[1759102973612,1.48934739,4138.8,4138.7,1.42173]
[1759102976315,1.92406739,4138.8,4138.7,1.42173]
[1759102976518,1.48934739,4138.8,4138.7,1.42173]
[1759102977416,0.6831,4138.3,4138.2,1.14448]
[1759102977606,1.16032195,4138.3,4138.2,1.41348]
[1759102977807,0.76772195,4138.3,4138.2,1.41348]
[1759102978010,0.76764554,4138.3,4138.2,1.41348]
[1759102978615,0.47714554,4138.3,4138.2,1.41348]
[1759102979414,0.245,4138.5,4138.4,0.99246]
[1759102979415,0.5355,4138.5,4138.4,0.99246]
[1759102979716,1.0126415,4138.5,4138.4,1.41346]
[1759102980304,1.4052415,4138.5,4138.4,1.41346]
[1759102980818,1.6681415,4138.5,4138.4,1.41346]
[1759102981516,0.7221415,4138.5,4138.4,1.41346]
[1759102983213,1.4052415,4138.5,4138.4,1.41346]
[1759102983423,0.7221415,4138.5,4138.4,1.41346]
[1759102985919,0.4771415,4138.5,4138.4,1.41346]
[1759102986517,0.245,4139.1,4139.0,0.4347]
[1759102986720,0.245,4139.1,4139.0,1.5857]
[1759102986721,0.72244695,4139.1,4139.0,1.5857]
[1759102986917,1.66844695,4139.1,4139.0,1.5857]
[1759102987326,1.66844695,4139.1,4139.0,1.4134]
[1759102988616,1.66844695,4139.1,4139.0,1.5857]
[1759102990120,1.27584695,4139.1,4139.0,1.5857]
[1759102990426,0.72244695,4139.1,4139.0,1.5857]
[1759102991018,1.40554695,4139.1,4139.0,1.5857]
[1759102991219,1.01294695,4139.1,4139.0,1.5857]
[1759102991726,1.71634695,4139.1,4139.0,1.5857]
[1759102992521,1.71634695,4139.1,4139.0,1.1055]
[1759102992716,1.1305,4139.0,4138.8,0.43471]
[1759102992913,1.1305,4139.0,4138.5,0.4026]
[1759102992914,0.5376,4138.7,4138.6,0.43474]
[1759102993124,2.31262488,4138.7,4138.6,0.43474]
[1759102993513,2.55762488,4138.7,4138.6,0.43474]
[1759102998221,1.01504695,4138.7,4138.6,0.97754]
[1759102998422,0.47744695,4138.7,4138.6,2.25191793]
[1759102998618,3.2078,4139.3,4139.2,0.9454]
[1759102998827,4.1712,4139.3,4139.2,0.9454]
[1759102999030,5.04297793,4139.3,4139.2,0.9454]
[1759102999225,4.61717793,4139.3,4139.2,0.9454]
[1759102999430,3.2078,4139.3,4139.2,0.9454]
[1759102999826,3.4678,4139.3,4139.2,0.9454]
[1759103000526,4.1712,4139.3,4139.2,0.9454]
[1759103001329,3.4678,4139.3,4139.2,0.9454]
[1759103001636,0.245,4139.4,4139.3,1.38005]
[1759103001832,0.00227204,4140.0,4139.9,1.37999]
[1759103002234,1.21167204,4140.0,4139.9,1.37999]
[1759103002634,2.08344997,4140.0,4139.9,1.37999]
[1759103004333,1.21167204,4140.0,4139.9,1.37999]
[1759103004934,0.246,4140.0,4139.9,0.9454]
[1759103005635,0.246,4140.0,4139.9,1.37999]
[1759103005837,0.24773896,4140.0,4139.9,1.37999]
[1759103006834,0.24773896,4140.0,4139.9,0.9454]
[1759103011135,0.24773896,4140.0,4139.9,1.37999]
[1759103014934,0.87177793,4140.9,4140.8,0.9707]
[1759103015135,1.11777793,4140.9,4140.8,1.3648]
[1759103015536,1.11777793,4140.9,4140.8,0.9303]
[1759103015932,1.12019457,4140.9,4140.8,0.9303]
[1759103016730,1.55468457,4140.9,4140.8,0.9303]
[1759103018534,0.00241664,4140.9,4140.8,0.9303]
[1759103019844,0.87419457,4140.9,4140.8,0.9303]
[1759103020943,1.12019457,4140.9,4140.8,0.9303]
[1759103022541,0.24841664,4140.9,4140.8,0.9303]
[1759103023148,1.12019457,4140.9,4140.8,0.9303]
[1759103024143,0.24841664,4140.9,4140.8,0.9303]
[1759103033655,1.12019457,4140.9,4140.8,0.9303]
[1759103034352,1.55467457,4140.9,4140.8,0.9303]
[1759103034946,1.12019457,4140.9,4140.8,0.9303]
[1759103035348,1.55467457,4140.9,4140.8,0.9303]
[1759103035548,1.12019457,4140.9,4140.8,1.36479]
[1759103035748,0.24841664,4140.9,4140.8,1.36479]
[1759103036249,0.24841664,4140.9,4140.8,0.9303]
[1759103036456,1.12019457,4140.9,4140.8,0.9303]
[1759103037751,1.12019457,4140.9,4140.8,0.3941]
[1759103037958,0.24841664,4140.9,4140.8,0.9825]
[1759103038256,1.12019457,4140.9,4140.8,0.9825]
[1759103038857,0.24841664,4140.9,4140.8,0.9825]
[1759103039161,1.12019457,4140.9,4140.8,0.9825]
[1759103040762,0.24841664,4140.9,4140.8,0.9825]
[1759103045357,0.00241664,4140.9,4140.8,0.9825]
[1759103047662,0.245,4141.3,4140.8,0.9825]
[1759103047663,0.245,4141.3,4141.2,1.48805]
[1759103047859,0.245,4141.3,4141.2,4.69585]
[1759103048568,0.24759298,4141.3,4141.2,4.69859405]
[1759103050470,0.00259298,4141.3,4141.2,4.69859405]
[1759103053056,0.00259298,4141.3,4141.2,4.94359405]
[1759103054260,0.245,4141.9,4141.8,1.1407]
[1759103054469,0.245,4141.9,4141.8,4.3485]
[1759103054667,0.245,4141.9,4141.8,4.78289]
[1759103055070,0.245,4141.9,4141.8,3.7061]
[1759103055268,0.24686405,4141.9,4141.8,4.3485]
[1759103055969,1.25438094,4141.9,4141.8,4.3485]
[1759103056775,6.25438094,4141.9,4141.8,4.0217]
[1759103056971,6.25438094,4141.9,4141.8,3.7061]
[1759103057672,6.25438094,4141.9,4141.8,4.0217]
[1759103057872,6.25438094,4141.9,4141.8,4.3485]
[1759103058170,0.24686405,4141.9,4141.8,4.3485]
[1759103060460,0.00186405,4141.9,4141.8,4.3485]
[1759103064671,0.00186405,4141.9,4141.8,4.5935]
[1759103064868,0.245,4142.5,4141.8,4.5935]
[1759103064869,0.245,4142.5,4142.4,0.43431]
[1759103065065,0.245,4142.5,4142.4,4.76111]
[1759103065973,0.24749064,4142.5,4142.4,4.76111]
[1759103067878,0.72099891,4142.5,4142.4,4.76111]
[1759103068275,1.52e-06,4142.6,4142.4,4.76111]
[1759103068463,1.08514,4144.9,4144.0,0.6808]
[1759103068464,2.17644203,4144.2,4144.0,0.6808]
[1759103068668,0.43412,4144.2,4144.1,3.2078]
[1759103068867,0.47336951,4144.2,4144.1,4.0206]
[1759103069371,5.15712426,4145.0,4144.1,4.0206]
[1759103069372,0.1918,4145.1,4145.0,0.5248]
[1759103069578,0.09840542,4145.1,4145.0,4.04147182]
[1759103069870,1.10592231,4145.1,4145.0,4.52587182]
[1759103070067,1.63585231,4145.1,4145.0,4.52587182]
[1759103070267,6.69575231,4145.1,4145.0,3.89127182]
[1759103070472,6.69575231,4145.1,4145.0,0.00267182]
[1759103071072,0.68578,4144.6,4144.5,3.2078]
[1759103071266,1.94029689,4144.6,4144.5,3.8886]
[1759103071470,1.88039689,4144.6,4144.5,4.217]
[1759103071974,1.88039689,4144.6,4144.5,4.21976151]
[1759103073074,6.94029689,4144.6,4144.5,3.21056151]
[1759103073268,6.94029689,4144.6,4144.5,0.00276151]
[1759103073964,0.68583,4144.1,4144.0,3.2078]
[1759103074164,1.94034689,4144.1,4144.0,3.2078]
[1759103074369,1.94034689,4144.1,4144.0,3.6922]
[1759103074970,1.94034689,4144.1,4144.0,3.69392595]
[1759103075382,1.94034689,4144.1,4144.0,3.89032595]
[1759103075578,1.88044689,4144.1,4144.0,4.21872595]
[1759103076077,1.44631689,4144.1,4144.0,4.52492595]
[1759103076277,1.25451689,4144.1,4144.0,4.52492595]
[1759103076578,1.35041689,4144.1,4144.0,4.52492595]
[1759103076770,1.44631689,4144.1,4144.0,4.52492595]
[1759103078175,1.44631689,4144.1,4144.0,4.21872595]
[1759103078586,0.1918,4143.8,4143.7,0.8128]
[1759103078784,1.19931689,4143.8,4143.7,0.8128]
[1759103078980,1.19931689,4143.8,4143.7,1.119]
[1759103079581,1.19931689,4143.8,4143.7,1.1218539]
[1759103080278,0.1918,4143.8,4143.7,1.1218539]
[1759103080476,1.19931689,4143.8,4143.7,1.1218539]
[1759103080679,1.19931689,4143.8,4143.7,0.8156539]
[1759103081384,1.6693774,4143.8,4143.7,1.1218539]
[1759103084282,0.47006051,4143.8,4143.7,1.1218539]
[1759103084483,0.71706051,4143.8,4143.7,1.1218539]
[1759103086182,0.90886051,4143.8,4143.7,0.4872539]
[1759103086389,0.96876051,4143.8,4143.7,0.4872539]
[1759103088479,0.96876051,4143.8,4143.7,0.0028539]
[1759103088686,0.68589,4143.5,4143.4,3.2078]
[1759103088886,1.40295051,4143.5,4143.4,3.6922]
[1759103089187,0.43424,4143.1,4143.0,0.6808]
[1759103089387,1.88055689,4143.1,4143.0,0.6808]
[1759103089589,2.3506174,4143.1,4143.0,0.68351472]
[1759103090082,2.3506174,4143.1,4143.0,1.01191472]
[1759103090684,2.4105174,4143.1,4143.0,0.68351472]
[1759103090885,2.4105174,4143.1,4142.8,3.6922]
[1759103090886,0.62606,4142.9,4142.8,3.6922]
[1759103091085,1.09612051,4142.9,4142.8,4.0206]
[1759103091883,1.09612051,4142.9,4142.8,4.02233023]
[1759103092083,1.15602051,4142.9,4142.8,0.4023919]
[1759103092588,1.15602051,4142.9,4142.8,0.00173023]
[1759103092781,41.95602051,4142.9,4142.8,0.00173023]
[1759103093194,46.95602051,4142.9,4142.8,0.00173023]
[1759103093998,1.13331,4142.4,4142.3,3.2078]
[1759103094186,1.68397051,4142.4,4142.3,3.998]
[1759103094387,1.68515635,4142.4,4142.3,3.998]
[1759103094989,1.85155635,4142.4,4142.3,3.68789316]
[1759103095189,1.68515635,4142.4,4142.3,4.00039316]
[1759103096692,6.85155635,4142.4,4142.3,3.68789316]
[1759103097287,6.85155635,4142.4,4142.3,0.48009316]
[1759103097590,1.58564,4142.1,4142.0,0.3125]
[1759103097793,1.58566,4141.9,4141.8,0.3125]
[1759103097981,2.05690635,4141.9,4141.8,0.3125]
[1759103098393,2.05996864,4141.9,4141.8,0.31439068]
[1759103098892,2.05996864,4141.9,4141.8,0.62129068]
[1759103099584,2.05996864,4141.9,4141.8,1.09899068]
[1759103099783,1.48456864,4141.9,4141.8,1.09899068]
[1759103100282,2.30596864,4141.9,4141.8,0.79209068]
[1759103100490,2.30596864,4141.9,4141.8,0.47959068]
[1759103100788,1.72782553,4141.9,4141.8,1.09899068]
[1759103101400,0.72030864,4141.9,4141.8,1.09899068]
[1759103102004,2.87912553,4141.9,4141.8,1.09899068]
[1759103102296,2.38152553,4141.9,4141.8,1.09899068]
[1759103102590,1.72782553,4141.9,4141.8,1.09899068]
[1759103102797,2.38152553,4141.9,4141.8,1.09899068]
[1759103102997,2.87912553,4141.9,4141.8,1.09899068]
[1759103103802,2.38152553,4141.9,4141.8,1.09899068]
[1759103104098,2.05772553,4141.9,4141.8,1.09899068]
[1759103104486,1.48182553,4141.9,4141.8,1.09899068]
[1759103104689,1.72782553,4141.9,4141.8,1.09899068]
[1759103105104,2.05772553,4141.9,4141.8,1.09899068]
[1759103108186,2.38152553,4141.9,4141.8,1.09899068]
[1759103108395,2.87912553,4141.9,4141.8,1.09899068]
[1759103108998,2.87912553,4141.9,4141.8,0.79209068]
[1759103109596,2.38152553,4141.9,4141.8,1.09899068]
[1759103110902,2.87912553,4141.9,4141.8,1.09899068]
[1759103111601,2.87912553,4141.9,4141.8,0.00189068]
[1759103111802,2.87912553,4141.9,4141.8,0.80279068]
[1759103112495,2.38152553,4141.9,4141.8,1.13019068]
[1759103112702,2.13552553,4141.9,4141.8,1.13019068]
[1759103113003,1.72782553,4141.9,4141.8,1.13019068]
[1759103113693,2.06542553,4141.9,4141.8,1.13019068]
[1759103114403,1.92871477,4141.9,4141.8,1.13019068]
[1759103114600,1.59111477,4141.9,4141.8,1.13019068]
[1759103114805,1.59111477,4141.9,4141.8,6.13019068]
[1759103115099,1.34511477,4141.9,4141.8,9.33799068]
[1759103115304,0.24906229,4141.9,4141.8,9.33799068]
[1759103115899,3.2078,4143.3,4143.2,0.43423]
[1759103116107,2.25406569,4143.3,4143.2,1.56253]
[1759103117002,2.25585721,4143.3,4143.2,1.56253]
[1759103117402,1.92755721,4143.3,4143.2,1.56253]
[1759103117807,1.58995721,4143.3,4143.2,1.56253]
[1759103118506,1.92755721,4143.3,4143.2,1.56253]
[1759103118710,2.75215721,4143.3,4143.2,0.474]
[1759103118909,2.25585721,4143.3,4143.2,1.1283]
[1759103119207,1.58995721,4143.3,4143.2,1.1283]
[1759103121304,1.11859765,4143.3,4143.2,1.1283]
[1759103121898,0.00179152,4143.3,4143.2,1.1283]
[1759103122201,0.58639152,4143.3,4143.2,1.1283]
[1759103122507,0.24879152,4143.3,4143.2,1.1283]
[1759103124403,0.90999152,4143.3,4143.2,1.1283]
[1759103124610,1.40199152,4143.3,4143.2,1.1283]
[1759103124811,1.40199152,4143.3,4143.2,0.8009]
[1759103124999,1.87285645,4143.3,4143.2,0.8009]
[1759103125804,2.74366258,4143.3,4143.2,0.8009]
[1759103126005,1.152,4143.1,4143.0,0.7751]
[1759103126510,1.152,4143.1,4143.0,1.2833]
[1759103127412,0.66,4143.1,4143.0,1.2833]
[1759103128318,0.66,4143.1,4143.0,1.0904]
[1759103128319,1.152,4143.1,4143.0,1.0904]
[1759103128709,1.62216729,4143.1,4143.0,0.4621]
[1759103129109,1.62216729,4143.1,4143.0,0.7751]
[1759103130910,1.62216729,4143.1,4142.8,3.2078]
[1759103130911,1.152,4142.9,4142.8,3.2078]
[1759103131215,2.73997342,4142.9,4142.8,3.2078]
[1759103131513,1.86916729,4142.9,4142.8,3.2078]
[1759103131714,1.86916729,4142.9,4142.8,3.6699]
[1759103131906,1.86916729,4142.9,4142.8,3.9829]
[1759103132107,1.86916729,4142.9,4142.8,4.2982]
[1759103132108,0.47016729,4142.9,4142.8,4.2982]
[1759103132317,0.71716729,4142.9,4142.8,4.2982]
[1759103134017,0.47016729,4142.9,4142.8,4.2982]
[1759103134212,0.33819152,4143.3,4143.2,0.43423]
[1759103134409,0.33819152,4143.3,4143.2,1.52463]
[1759103134410,1.45499765,4143.3,4143.2,1.52463]
[1759103134717,2.24901819,4143.3,4143.2,1.52463]
[1759103135119,2.74101819,4143.3,4143.2,1.52463]
[1759103135321,2.24901819,4143.3,4143.2,1.52463]
[1759103138323,2.74101819,4143.3,4143.2,1.0904]
[1759103139112,2.24901819,4143.3,4143.2,1.0904]
[1759103139624,2.74101819,4143.3,4143.2,1.0904]
[1759103140512,1.152,4142.9,4142.8,3.2078]
[1759103140708,3.6100328,4142.9,4142.8,3.2078]
[1759103141810,0.66,4142.4,4142.3,3.2078]
[1759103142014,2.73922667,4142.4,4142.3,3.2078]
[1759103142311,1.78846,4142.0,4141.9,0.313]
[1759103142516,1.78846,4142.0,4141.8,3.20969068]
[1759103142517,1.152,4141.9,4141.8,3.20969068]
[1759103142714,1.62242054,4141.9,4141.8,3.20969068]
[1759103145021,0.3364,4141.4,4141.3,3.5208]
[1759103145225,2.73922667,4141.4,4141.3,3.5208]
[1759103146120,2.73922667,4141.4,4141.3,3.52305852]
[1759103146840,3.6100328,4141.4,4141.3,3.52305852]
[1759103147122,3.6100328,4141.4,4141.3,3.21005852]
[1759103147621,3.6100328,4141.4,4141.3,0.00225852]
[1759103147819,1.152,4140.9,4140.8,3.5208]
[1759103148020,2.73922667,4140.9,4140.8,3.8361]
[1759103148227,2.73922667,4140.9,4140.8,4.2982]
[1759103148718,2.73922667,4140.9,4140.8,3.83921009]
[1759103148914,2.73922667,4140.9,4140.8,3.52391009]
[1759103149417,2.26880613,4140.9,4140.8,4.30131009]
[1759103149717,1.11680613,4140.9,4140.8,4.30131009]
[1759103150317,0.246,4140.9,4140.8,9.30131009]
[1759103151927,0.246,4140.9,4140.8,4.30131009]
[1759103152128,0.738,4140.9,4140.8,4.30131009]
[1759103152824,0.246,4140.9,4140.8,4.30131009]
[1759103155325,1.0243,4140.9,4140.8,4.30131009]
[1759103156334,1.3423,4140.9,4140.8,3.83921009]
[1759103156522,2.21310613,4140.9,4140.8,3.83921009]
[1759103156828,2.21310613,4140.9,4140.8,4.31861009]
[1759103157023,1.64910613,4140.9,4140.8,4.01131009]
[1759103157327,1.64910613,4140.9,4140.8,4.75079009]
[1759103157528,1.64910613,4140.9,4140.8,4.31631009]
[1759103159528,1.96710613,4140.9,4140.8,4.31631009]
[1759103159724,1.96710613,4140.9,4140.8,3.83691009]
[1759103159929,1.64910613,4140.9,4140.8,4.31631009]
[1759103160530,0.87080613,4140.9,4140.8,4.31631009]
[1759103161025,0.247,4141.1,4141.0,1.219]
[1759103161328,1.0253,4141.1,4141.0,1.1054]
[1759103161528,0.247,4141.1,4141.0,1.219]
[1759103162025,3.6792,4142.2,4142.0,1.06035]
[1759103162226,0.7783,4142.2,4142.1,1.1054]
[1759103162527,1.58829192,4142.2,4142.1,1.53974]
[1759103162921,1.11780613,4142.2,4142.1,1.53974]
[1759103163529,1.58920613,4142.2,4142.1,1.53974]
[1759103163922,1.58920613,4142.2,4142.1,1.1054]
[1759103164128,2.21410613,4142.2,4142.1,1.1054]
[1759103164331,2.21410613,4142.2,4142.1,0.626]
[1759103166434,2.6849491,4142.2,4142.1,1.1054]
[1759103167133,2.6849491,4142.2,4142.1,0.626]
[1759103167322,2.6849491,4142.2,4142.0,3.64216]
[1759103167323,1.53065,4142.1,4142.0,3.2078]
[1759103167526,2.00149297,4142.1,4142.0,3.5128]
[1759103167736,2.00149297,4142.1,4142.0,3.2078]
[1759103167938,0.6249,4141.6,4141.5,3.94721]
[1759103168129,1.96710613,4141.6,4141.5,4.26821]
[1759103168328,0.87080613,4141.6,4141.5,4.74761]
[1759103169837,1.96710613,4141.6,4141.5,4.3132]
[1759103170136,1.96710613,4141.6,4141.5,3.8338]
[1759103171039,2.87317442,4141.6,4141.5,3.5128]
[1759103171532,2.87317442,4141.6,4141.5,3.2078]
[1759103171733,2.87317442,4141.6,4141.0,3.2078]
[1759103171734,1.52135,4141.1,4141.0,3.2078]
[1759103171929,2.24001829,4141.1,4141.0,3.2078]
[1759103172129,3.11082442,4141.1,4141.0,3.2078]
[1759103172731,3.11082442,4141.1,4140.8,0.00311009]
[1759103172732,1.03837,4140.9,4140.8,0.00311009]
[1759103172932,1.99303829,4140.9,4140.8,0.00311009]
[1759103173133,1.55856829,4140.9,4140.8,0.00311009]
[1759103176339,2.56671552,4140.9,4140.8,0.00311009]
[1759103178140,2.56671552,4140.9,4139.4,1.08656]
[1759103178141,0.1824,4140.5,4139.9,4.3265]
[1759103178334,1.2693,4140.5,4140.4,0.6323]
[1759103178537,1.98892887,4140.5,4140.4,0.6323]
[1759103178940,1.98892887,4140.5,4140.4,1.1187]
[1759103179140,1.98892887,4140.5,4140.4,4.32956552]
[1759103179544,1.80652887,4140.5,4140.4,4.32956552]
[1759103180148,1.3349,4140.5,4140.4,4.32956552]
[1759103180847,1.5173,4140.5,4140.4,4.32956552]
[1759103181041,1.98878764,4140.5,4140.4,4.32956552]
[1759103181445,1.5173,4140.5,4140.4,4.32956552]
[1759103181648,1.98874519,4140.5,4140.4,4.32956552]
[1759103182148,1.9887435,4140.5,4140.4,4.32956552]
[1759103183141,1.9887435,4140.5,4140.4,4.76409552]
[1759103183337,1.5173,4140.5,4140.4,4.76409552]
[1759103184846,1.5173,4140.5,4140.4,3.51226552]
[1759103185042,1.0346,4140.5,4140.4,4.29246552]
[1759103186552,0.1824,4141.0,4140.6,1.08626]
[1759103186553,0.6518,4141.0,4140.6,1.08626]
[1759103186754,3.2078,4141.6,4141.5,1.0816]
[1759103186755,3.5126,4141.6,4141.5,1.0816]
[1759103186954,5.23890886,4141.6,4141.5,1.0816]
[1759103187146,5.56110886,4141.6,4141.5,1.0816]
[1759103187346,6.03050886,4141.6,4141.5,0.6277]
[1759103188653,2.82270886,4141.6,4141.5,0.6277]
[1759103191754,2.82270886,4141.6,4140.9,4.29398]
[1759103191755,1.2904,4141.0,4140.9,4.26997]
[1759103192257,2.29854723,4141.0,4140.9,3.94367]
[1759103194556,2.29854723,4141.0,4140.9,3.2078]
[1759103194949,2.77009467,4141.0,4140.9,3.2078]
[1759103195151,2.29854723,4141.0,4140.9,3.2078]
[1759103195350,2.77021571,4141.0,4140.9,3.2078]
[1759103195558,0.627,4140.7,4140.6,0.4345]
[1759103195759,2.35154723,4140.7,4140.6,0.4345]
[1759103196054,1.2904,4140.5,4140.4,3.21086552]
[1759103196250,1.5374,4140.5,4140.4,3.21086552]
[1759103196451,1.5374,4140.5,4140.4,4.27308552]
[1759103197051,2.54554723,4140.5,4140.4,4.27308552]
[1759103198761,3.01758911,4140.5,4140.4,3.83856552]
[1759103199058,3.01758911,4140.5,4140.4,3.51226552]
[1759103199259,3.01758911,4140.5,4140.4,3.83856552]
[1759103199470,3.01758911,4140.5,4140.4,4.29246552]
[1759103200173,3.01758911,4140.5,4140.4,3.83856552]
[1759103201573,3.01758911,4140.5,4140.4,1.08466552]
[1759103202074,3.01758911,4140.5,4140.4,0.63076552]
[1759103202473,3.01758911,4140.5,4140.4,0.30446552]
[1759103202669,3.01758911,4140.5,4140.4,0.00306552]
[1759103206273,3.01787201,4140.5,4140.4,0.00306552]
[1759103209971,8.01787201,4140.5,4140.4,0.00306552]
[1759103210170,0.627,4139.8,4139.7,3.2078]
[1759103210479,2.82387201,4139.8,4139.7,3.2078]
[1759103211174,2.82684267,4139.8,4139.7,3.21068553]
[1759103211469,2.82684267,4139.8,4139.7,0.00288553]
[1759103212675,0.7742,4138.3,4138.2,4.72416]
[1759103212872,0.4694,4139.7,4139.4,0.6277]
[1759103213072,0.00297066,4139.8,4139.7,1.5162]
[1759103213273,0.72288797,4139.8,4139.7,6.5162]
[1759103213478,0.25097066,4139.8,4139.7,6.5162]
[1759103213680,0.25097066,4139.8,4139.7,6.51830224]
[1759103214278,1.02517066,4139.8,4139.7,1.08370224]
[1759103216286,0.25097066,4139.8,4139.7,6.08370224]
[1759103216480,0.00297066,4139.8,4139.7,6.08370224]
[1759103218088,0.00297066,4139.8,4139.7,7.33884947]
[1759103218288,0.00297066,4139.8,4139.7,7.09184947]
[1759103218489,3.982,4140.8,4140.7,1.06569]
[1759103218689,4.59487059,4140.8,4140.7,1.52519]
[1759103218887,1.69997059,4140.8,4140.7,1.52519]
[1759103219193,1.69997059,4140.8,4140.7,0.3091]
[1759103219384,1.70233139,4140.8,4140.7,0.3091]
[1759103220087,0.7742,4140.1,4140.0,4.73307]
[1759103220283,1.78234723,4140.1,4140.0,4.73307]
[1759103221388,2.09524723,4140.1,4140.0,4.73307]
[1759103221582,1.25514723,4140.2,4140.1,0.4595]
[1759103221788,1.25514723,4140.2,4140.1,1.0907]
[1759103221987,2.02934723,4140.2,4140.1,1.0907]
[1759103223784,0.7742,4140.2,4140.1,1.0907]
[1759103225492,1.0871,4140.2,4140.1,0.6312]
[1759103225698,1.0871,4140.2,4140.1,1.0907]
[1759103226488,1.55978811,4140.2,4140.1,0.6312]
[1759103226886,1.0871,4140.2,4140.1,0.6312]
[1759103227086,1.55980354,4140.2,4140.1,0.6312]
[1759103228794,1.0871,4140.2,4140.1,0.6312]
[1759103229297,1.55982657,4140.2,4140.1,0.6312]
[1759103229494,1.99437657,4140.2,4140.0,3.2078]
[1759103229699,1.55971384,4140.1,4140.0,3.64236]
[1759103230899,2.56786107,4140.1,4140.0,3.95146]
[1759103231099,2.81486107,4140.1,4140.0,3.95146]
[1759103231396,2.81486107,4140.1,4140.0,3.64236]
[1759103233392,2.81486107,4140.1,4140.0,3.64237]
[1759103233594,2.81486107,4140.1,4140.0,3.2078]
[1759103234791,0.6231,4139.8,4139.7,0.43670224]
[1759103234991,2.82946107,4139.8,4139.7,0.43670224]
[1759103236301,3.56480534,4139.8,4139.7,0.43670224]
[1759103236696,2.69305959,4139.8,4139.7,0.75180224]
[1759103238497,2.69305959,4139.8,4139.7,1.05580224]
[1759103238795,2.69305959,4139.8,4139.7,1.53140224]
[1759103239004,2.69305959,4139.8,4139.7,1.05580224]
[1759103239302,2.69305959,4139.8,4139.7,0.31720224]
[1759103239501,2.69305959,4139.8,4139.7,0.00210224]
[1759103239895,3.56480534,4139.8,4139.7,0.00210224]
[1759103241509,0.8142,4139.0,4138.9,3.5229]
[1759103241698,2.88415959,4139.0,4138.9,3.5229]
[1759103242604,2.88415959,4139.0,4138.9,3.52545688]
[1759103244112,2.88415959,4139.0,4138.9,3.82945688]
[1759103244405,2.88415959,4139.0,4138.9,4.27875688]
[1759103244406,2.69305959,4139.0,4138.9,4.27875688]
[1759103244608,1.59135959,4139.0,4138.9,4.27875688]
[1759103245002,1.11874575,4139.0,4138.9,4.27875688]
[1759103245402,1.58194575,4139.0,4138.9,4.27875688]
[1759103245706,2.39634575,4139.0,4138.9,3.82945688]
[1759103246109,2.39634575,4139.0,4138.9,4.27875688]
[1759103247017,1.11874575,4139.0,4138.9,4.27875688]
[1759103247509,1.11774575,4139.0,4138.9,4.27875688]
[1759103247698,0.246,4139.3,4139.2,1.50965]
[1759103248505,0.7092,4139.3,4139.2,1.50965]
[1759103248699,1.0061,4139.3,4139.2,1.50965]
[1759103248905,1.3303,4139.3,4139.2,1.50965]
[1759103249909,1.3303,4139.3,4139.2,1.06035]
[1759103253106,1.3303,4139.3,4139.2,0.75405]
[1759103253809,1.80266688,4139.3,4139.2,0.43465]
[1759103254108,1.0843,4139.1,4139.0,0.75407]
[1759103254309,1.95604575,4139.1,4139.0,0.75407]
[1759103255511,1.95604575,4139.1,4139.0,0.3194]
[1759103255709,1.71227,4139.0,4138.9,3.64503688]
[1759103255910,1.95827,4139.0,4138.9,3.64503688]
[1759103256219,1.95827,4139.0,4138.9,3.96443688]
[1759103256409,1.95827,4139.0,4138.9,0.00255688]
[1759103256410,2.430841,4139.0,4138.9,0.00255688]
[1759103258319,2.67461675,4139.0,4138.9,1.07755688]
[1759103258813,2.86791675,4139.0,4138.9,1.07755688]
[1759103259210,2.86791675,4139.0,4138.9,0.62825688]
[1759103259604,2.86791675,4139.0,4138.9,0.00255688]
[1759103263435,1.95604575,4138.4,4138.3,3.5272]
[1759103263633,2.67461675,4138.4,4138.3,3.5272]
[1759103263838,3.10935675,4138.4,4138.3,3.5272]
[1759103264336,3.10935675,4138.4,4138.3,3.52943881]
[1759103264927,3.10971997,4138.4,4138.3,3.52943881]
[1759103266133,3.10971997,4138.4,4138.3,3.21003881]
[1759103267630,3.98146572,4138.4,4138.3,3.21003881]
[1759103267834,2.67497997,4138.4,4138.3,3.21003881]
[1759103268140,2.67497997,4138.4,4138.3,3.52943881]
[1759103268735,2.67497997,4138.4,4138.3,4.28503881]
[1759103268933,2.67497997,4138.4,4138.3,3.83573881]
[1759103269434,2.67497997,4138.4,4138.3,4.28503881]
[1759103269636,1.34467997,4138.4,4138.3,4.28503881]
[1759103269834,0.71893422,4138.4,4138.3,4.28503881]
[1759103270338,0.7092,4138.4,4138.3,4.28503881]
[1759103271234,0.246,4138.4,4138.3,4.28503881]
[1759103272228,1.0061,4138.4,4138.3,4.28503881]
[1759103272436,1.47896794,4138.4,4138.3,4.28503881]
[1759103272631,1.0061,4138.4,4138.3,4.28503881]
[1759103273030,0.7601,4138.4,4138.3,4.28503881]
[1759103273834,1.11774575,4138.5,4138.4,1.46404]
[1759103274136,1.5905937,4138.5,4138.4,1.46404]
[1759103274641,1.3445937,4138.5,4138.4,1.46404]